[Event "Titled Tuesday Blitz April 11 Early 2023"]
[White "Gurevich, Dmitry"]
[Black "Ingebretsen, Jens E"]
[WhiteFideId "2000407"]
[BlackFideId "1522965"]
[WhiteElo "2506"]
[BlackElo "2213"]
[Result "0-1"]
[Round "06"]
[TimeControl "180+2"]
[Date "2023.04.11"]
[WhiteClock "0:00:22"]
[BlackClock "0:01:02"]

1. d4 {[%clk 0:03:00]}  Nf6 {[%clk 0:02:59]} 2. c4 {[%clk 0:03:00]}  e6 {[%clk 0:03:00]} 3. Nf3 {[%clk 0:02:56]}  d5 {[%clk 0:03:00]} 4. Nc3 {[%clk 0:02:55]}  c5 {[%clk 0:03:00]} 5. cxd5 {[%clk 0:02:54]}  Nxd5 {[%clk 0:03:01]} 6. e4 {[%clk 0:02:53]}  Nxc3 {[%clk 0:03:02]} 7. bxc3 {[%clk 0:02:53]}  cxd4 {[%clk 0:03:03]} 8. cxd4 {[%clk 0:02:54]}  Bb4+ {[%clk 0:03:04]} 9. Bd2 {[%clk 0:02:54]}  Bxd2+ {[%clk 0:03:04]} 10. Qxd2 {[%clk 0:02:55]}  O-O {[%clk 0:03:05]} 11. Bc4 {[%clk 0:02:54]}  Nd7 {[%clk 0:03:06]} 12. O-O {[%clk 0:02:53]}  b6 {[%clk 0:03:06]} 13. a4 {[%clk 0:02:49]}  Bb7 {[%clk 0:03:06]} 14. d5 {[%clk 0:02:44]}  exd5 {[%clk 0:03:04]} 15. Bxd5 {[%clk 0:02:43]}  Bxd5 {[%clk 0:03:03]} 16. exd5 {[%clk 0:02:34]}  Re8 {[%clk 0:02:57]} 17. Rfd1 {[%clk 0:02:31]}  Nc5 {[%clk 0:02:56]} 18. Qa2 {[%clk 0:02:27]}  Qd6 {[%clk 0:02:48]} 19. Nd4 {[%clk 0:02:23]}  Rad8 {[%clk 0:02:46]} 20. Nc6 {[%clk 0:02:16]}  Rd7 {[%clk 0:02:42]} 21. a5 {[%clk 0:02:13]}  b5 {[%clk 0:02:36]} 22. a6 {[%clk 0:02:12]}  Rc8 {[%clk 0:02:23]} 23. h3 {[%clk 0:02:06]}  Ne4 {[%clk 0:02:17]} 24. Qb2 {[%clk 0:01:52]}  Qc5 {[%clk 0:02:02]} 25. Qd4 {[%clk 0:01:42]}  Qxd4 {[%clk 0:01:57]} 26. Rxd4 {[%clk 0:01:39]}  Nf6 {[%clk 0:01:39]} 27. Rc1 {[%clk 0:01:27]}  Kf8 {[%clk 0:01:36]} 28. Rc5 {[%clk 0:01:27]}  b4 {[%clk 0:01:26]} 29. Rxb4 {[%clk 0:01:14]}  Rxd5 {[%clk 0:01:25]} 30. Rxd5 {[%clk 0:01:07]}  Nxd5 {[%clk 0:01:26]} 31. Rb8 {[%clk 0:00:46]}  Rxb8 {[%clk 0:01:25]} 32. Nxb8 {[%clk 0:00:46]}  Nb4 {[%clk 0:01:24]} 33. Nd7+ {[%clk 0:00:36]}  Ke7 {[%clk 0:01:25]} 34. Nc5 {[%clk 0:00:33]}  Kd6 {[%clk 0:01:25]} 35. Nb7+ {[%clk 0:00:33]}  Kd5 {[%clk 0:01:20]} 36. f3 {[%clk 0:00:31]}  Nxa6 {[%clk 0:01:19]} 37. Kf2 {[%clk 0:00:31]}  Nc5 {[%clk 0:01:19]} 38. Na5 {[%clk 0:00:30]}  Ne6 {[%clk 0:01:06]} 39. Ke3 {[%clk 0:00:28]}  f5 {[%clk 0:01:04]} 40. g4 {[%clk 0:00:27]}  f4+ {[%clk 0:01:04]} 41. Kd3 {[%clk 0:00:26]}  Ng5 {[%clk 0:01:03]} 42. Ke2 {[%clk 0:00:22]}  Nxh3 {[%clk 0:01:02]} 0-1


[Site "https://www.chess.com"]

[Event "Titled Tuesday Blitz April 11 Early 2023"]
[White "Aldokhin, Ivan"]
[Black "Arpita, Mukherjee"]
[WhiteFideId "24115720"]
[BlackFideId "5056403"]
[WhiteElo "2322"]
[BlackElo "2129"]
[Result "0-1"]
[Round "06"]
[TimeControl "180+2"]
[Date "2023.04.11"]
[WhiteClock "0:00:02"]
[BlackClock "0:00:33"]

1. e4 {[%clk 0:03:00]}  c5 {[%clk 0:02:59]} 2. Nf3 {[%clk 0:03:01]}  d6 {[%clk 0:03:00]} 3. d4 {[%clk 0:03:02]}  cxd4 {[%clk 0:03:01]} 4. Nxd4 {[%clk 0:03:03]}  Nf6 {[%clk 0:03:01]} 5. Nc3 {[%clk 0:03:03]}  a6 {[%clk 0:03:02]} 6. Bc4 {[%clk 0:03:03]}  e6 {[%clk 0:03:01]} 7. Bb3 {[%clk 0:03:03]}  Nbd7 {[%clk 0:03:01]} 8. O-O {[%clk 0:03:03]}  Nc5 {[%clk 0:03:02]} 9. Qf3 {[%clk 0:03:03]}  Be7 {[%clk 0:03:02]} 10. Re1 {[%clk 0:03:00]}  O-O {[%clk 0:03:02]} 11. Qg3 {[%clk 0:03:00]}  Kh8 {[%clk 0:02:56]} 12. Bg5 {[%clk 0:02:57]}  Qc7 {[%clk 0:02:46]} 13. Qh4 {[%clk 0:02:54]}  b5 {[%clk 0:02:39]} 14. Re3 {[%clk 0:02:49]}  Ng8 {[%clk 0:02:28]} 15. Rd1 {[%clk 0:02:35]}  h6 {[%clk 0:02:15]} 16. Bxe7 {[%clk 0:02:32]}  Nxe7 {[%clk 0:02:12]} 17. Ndxb5 {[%clk 0:02:12]}  axb5 {[%clk 0:02:05]} 18. Nxb5 {[%clk 0:02:13]}  Qd7 {[%clk 0:01:45]} 19. Rxd6 {[%clk 0:02:06]}  Qxb5 {[%clk 0:01:38]} 20. Qxe7 {[%clk 0:02:06]}  Ba6 {[%clk 0:01:35]} 21. Rd1 {[%clk 0:01:46]}  Rad8 {[%clk 0:01:22]} 22. Ree1 {[%clk 0:01:12]}  Rde8 {[%clk 0:01:03]} 23. Qd6 {[%clk 0:01:04]}  Nxb3 {[%clk 0:01:03]} 24. axb3 {[%clk 0:01:02]}  Rd8 {[%clk 0:01:00]} 25. Qxd8 {[%clk 0:00:41]}  Rxd8 {[%clk 0:01:01]} 26. Rxd8+ {[%clk 0:00:41]}  Kh7 {[%clk 0:01:01]} 27. Rd4 {[%clk 0:00:25]}  Qc5 {[%clk 0:00:52]} 28. c3 {[%clk 0:00:24]}  Qb5 {[%clk 0:00:49]} 29. b4 {[%clk 0:00:21]}  Qa4 {[%clk 0:00:50]} 30. Rd2 {[%clk 0:00:18]}  Bc4 {[%clk 0:00:48]} 31. f3 {[%clk 0:00:18]}  Bb3 {[%clk 0:00:46]} 32. Kf2 {[%clk 0:00:13]}  Qa7+ {[%clk 0:00:42]} 33. Kg3 {[%clk 0:00:09]}  e5 {[%clk 0:00:40]} 34. Rd6 {[%clk 0:00:04]}  Qe7 {[%clk 0:00:37]} 35. Rd3 {[%clk 0:00:04]}  Bc4 {[%clk 0:00:36]} 36. Rde3 {[%clk 0:00:03]}  Qa7 {[%clk 0:00:35]} 37. h3 {[%clk 0:00:01]}  Qa2 {[%clk 0:00:35]} 38. Kf2 {[%clk 0:00:01]}  Qxb2+ {[%clk 0:00:36]} 39. Kg3 {[%clk 0:00:02]}  h5 {[%clk 0:00:34]} 40. h4 {[%clk 0:00:01]}  Qa2 {[%clk 0:00:32]} 41. Kh3 {[%clk 0:00:02]}  Qf2 {[%clk 0:00:31]} 42. g3 {[%clk 0:00:01]}  f6 {[%clk 0:00:31]} 43. g4 {[%clk 0:00:01]}  Bf1+ {[%clk 0:00:31]} 44. Rxf1 {[%clk 0:00:01]}  Qxf1+ {[%clk 0:00:32]} 45. Kg3 {[%clk 0:00:02]}  Qg1+ {[%clk 0:00:32]} 46. Kh3 {[%clk 0:00:02]}  Qxe3 {[%clk 0:00:33]} 0-1


[Site "https://www.chess.com"]

[Event "Titled Tuesday Blitz April 11 Early 2023"]
[White "Petrov, Martin"]
[Black "Grot, Blazej"]
[WhiteFideId "2911086"]
[BlackFideId "21835845"]
[WhiteElo "2430"]
[BlackElo "1823"]
[Result "1/2-1/2"]
[Round "06"]
[TimeControl "180+2"]
[Date "2023.04.11"]
[WhiteClock "0:00:35"]
[BlackClock "0:01:21"]

1. e4 {[%clk 0:03:00]}  c5 {[%clk 0:03:00]} 2. Nc3 {[%clk 0:03:00]}  e6 {[%clk 0:02:59]} 3. Nge2 {[%clk 0:02:55]}  Nc6 {[%clk 0:02:58]} 4. g3 {[%clk 0:02:54]}  Nf6 {[%clk 0:02:50]} 5. Bg2 {[%clk 0:02:54]}  d5 {[%clk 0:02:45]} 6. exd5 {[%clk 0:02:53]}  exd5 {[%clk 0:02:46]} 7. d4 {[%clk 0:02:53]}  Bg4 {[%clk 0:02:41]} 8. h3 {[%clk 0:02:49]}  Be6 {[%clk 0:02:34]} 9. O-O {[%clk 0:02:44]}  cxd4 {[%clk 0:02:32]} 10. Nxd4 {[%clk 0:02:43]}  Qd7 {[%clk 0:02:32]} 11. Bg5 {[%clk 0:02:24]}  Be7 {[%clk 0:02:26]} 12. Nxe6 {[%clk 0:02:07]}  fxe6 {[%clk 0:02:27]} 13. Re1 {[%clk 0:02:06]}  O-O {[%clk 0:02:21]} 14. Qe2 {[%clk 0:02:03]}  Nd4 {[%clk 0:02:16]} 15. Qd3 {[%clk 0:02:02]}  Nc6 {[%clk 0:02:11]} 16. Qe2 {[%clk 0:01:55]}  Nd4 {[%clk 0:02:08]} 17. Qd3 {[%clk 0:01:55]}  Nc6 {[%clk 0:02:05]} 18. Rad1 {[%clk 0:01:56]}  Rae8 {[%clk 0:02:01]} 19. h4 {[%clk 0:01:51]}  Kh8 {[%clk 0:01:51]} 20. Bh3 {[%clk 0:01:42]}  Bc5 {[%clk 0:01:43]} 21. Be3 {[%clk 0:01:40]}  d4 {[%clk 0:01:39]} 22. Na4 {[%clk 0:00:49]}  Ne5 {[%clk 0:01:34]} 23. Nxc5 {[%clk 0:00:47]}  Qd5 {[%clk 0:01:26]} 24. Bg2 {[%clk 0:00:35]}  Nxd3 {[%clk 0:01:21]} 1/2-1/2


[Site "https://www.chess.com"]

[Event "Titled Tuesday Blitz April 11 Early 2023"]
[White "Tregubov, Pavel V."]
[Black "Vovk, Orest"]
[WhiteFideId "4115341"]
[BlackFideId "14113490"]
[WhiteElo "2425"]
[BlackElo "2215"]
[Result "0-1"]
[Round "06"]
[TimeControl "180+2"]
[Date "2023.04.11"]
[WhiteClock "0:00:02"]
[BlackClock "0:00:02"]

1. e4 {[%clk 0:03:00]}  g5 {[%clk 0:02:52]} 2. d4 {[%clk 0:02:56]}  h6 {[%clk 0:02:48]} 3. h4 {[%clk 0:02:55]}  g4 {[%clk 0:02:48]} 4. h5 {[%clk 0:02:46]}  d5 {[%clk 0:02:46]} 5. e5 {[%clk 0:02:42]}  c5 {[%clk 0:02:46]} 6. Be2 {[%clk 0:02:34]}  Nc6 {[%clk 0:02:44]} 7. Bxg4 {[%clk 0:02:20]}  Bxg4 {[%clk 0:02:37]} 8. Qxg4 {[%clk 0:02:20]}  Nxd4 {[%clk 0:02:36]} 9. Qd1 {[%clk 0:02:20]}  Qc7 {[%clk 0:02:24]} 10. f4 {[%clk 0:02:02]}  e6 {[%clk 0:02:23]} 11. c3 {[%clk 0:02:02]}  Nf5 {[%clk 0:02:23]} 12. Rh3 {[%clk 0:01:52]}  O-O-O {[%clk 0:02:14]} 13. g4 {[%clk 0:01:48]}  Nfe7 {[%clk 0:02:14]} 14. Na3 {[%clk 0:01:44]}  a6 {[%clk 0:02:11]} 15. Ne2 {[%clk 0:01:39]}  f6 {[%clk 0:02:10]} 16. Qa4 {[%clk 0:01:10]}  Bg7 {[%clk 0:02:03]} 17. Be3 {[%clk 0:01:00]}  fxe5 {[%clk 0:01:55]} 18. O-O-O {[%clk 0:01:00]}  d4 {[%clk 0:01:49]} 19. Bd2 {[%clk 0:00:53]}  e4 {[%clk 0:01:46]} 20. cxd4 {[%clk 0:00:51]}  cxd4+ {[%clk 0:01:44]} 21. Kb1 {[%clk 0:00:51]}  Kb8 {[%clk 0:01:33]} 22. Ba5 {[%clk 0:00:40]}  Qd7 {[%clk 0:01:24]} 23. Qb3 {[%clk 0:00:28]}  Rc8 {[%clk 0:01:22]} 24. Nxd4 {[%clk 0:00:12]}  Bxd4 {[%clk 0:01:20]} 25. Bc3 {[%clk 0:00:12]}  Nc6 {[%clk 0:01:07]} 26. Nc2 {[%clk 0:00:07]}  e5 {[%clk 0:00:49]} 27. fxe5 {[%clk 0:00:07]}  Qxg4 {[%clk 0:00:47]} 28. Nxd4 {[%clk 0:00:08]}  Qxh3 {[%clk 0:00:37]} 29. Nxc6+ {[%clk 0:00:08]}  Rxc6 {[%clk 0:00:36]} 30. e6 {[%clk 0:00:08]}  Rxc3 {[%clk 0:00:32]} 31. bxc3 {[%clk 0:00:07]}  Nf6 {[%clk 0:00:18]} 32. e7 {[%clk 0:00:07]}  Qc8 {[%clk 0:00:14]} 33. Qf7 {[%clk 0:00:06]}  Nd7 {[%clk 0:00:06]} 34. Qf4+ {[%clk 0:00:05]}  Ka8 {[%clk 0:00:05]} 35. Qxe4 {[%clk 0:00:05]}  Re8 {[%clk 0:00:05]} 36. Qe6 {[%clk 0:00:05]}  Kb8 {[%clk 0:00:02]} 37. Qd6+ {[%clk 0:00:05]}  Ka8 {[%clk 0:00:02]} 38. Qxd7 {[%clk 0:00:05]}  Qxd7 {[%clk 0:00:02]} 39. Rxd7 {[%clk 0:00:06]}  Ka7 {[%clk 0:00:03]} 40. Kc2 {[%clk 0:00:05]}  Kb6 {[%clk 0:00:03]} 41. Kd3 {[%clk 0:00:05]}  Kc6 {[%clk 0:00:03]} 42. Rd4 {[%clk 0:00:06]}  Rxe7 {[%clk 0:00:04]} 43. Rg4 {[%clk 0:00:07]}  Re6 {[%clk 0:00:04]} 44. Rg6 {[%clk 0:00:07]}  Kd5 {[%clk 0:00:04]} 45. Rg7 {[%clk 0:00:07]}  b5 {[%clk 0:00:03]} 46. Rd7+ {[%clk 0:00:06]}  Kc6 {[%clk 0:00:03]} 47. Rg7 {[%clk 0:00:06]}  Rd6+ {[%clk 0:00:04]} 48. Ke4 {[%clk 0:00:06]}  Kc5 {[%clk 0:00:04]} 49. Rc7+ {[%clk 0:00:06]}  Kb6 {[%clk 0:00:04]} 50. Rg7 {[%clk 0:00:07]}  Ka5 {[%clk 0:00:04]} 51. Rg6 {[%clk 0:00:07]}  Rd2 {[%clk 0:00:04]} 52. Rxh6 {[%clk 0:00:06]}  Rxa2 {[%clk 0:00:04]} 53. Rg6 {[%clk 0:00:05]}  Rc2 {[%clk 0:00:04]} 54. h6 {[%clk 0:00:05]}  Rxc3 {[%clk 0:00:04]} 55. h7 {[%clk 0:00:05]}  Rh3 {[%clk 0:00:04]} 56. Rg7 {[%clk 0:00:05]}  b4 {[%clk 0:00:04]} 57. Kf4 {[%clk 0:00:04]}  b3 {[%clk 0:00:04]} 58. Kg4 {[%clk 0:00:05]}  Rh1 {[%clk 0:00:04]} 59. Rg5+ {[%clk 0:00:05]}  Ka4 {[%clk 0:00:03]} 60. Rh5 {[%clk 0:00:06]}  Rg1+ {[%clk 0:00:04]} 61. Kf3 {[%clk 0:00:05]}  Rf1+ {[%clk 0:00:04]} 62. Ke2 {[%clk 0:00:04]}  Rf8 {[%clk 0:00:05]} 63. h8=Q {[%clk 0:00:05]}  Rxh8 {[%clk 0:00:05]} 64. Rxh8 {[%clk 0:00:06]}  Ka3 {[%clk 0:00:05]} 65. Kd2 {[%clk 0:00:03]}  a5 {[%clk 0:00:03]} 66. Kc3 {[%clk 0:00:03]}  a4 {[%clk 0:00:03]} 67. Rb8 {[%clk 0:00:03]}  Ka2 {[%clk 0:00:03]} 68. Rb7 {[%clk 0:00:02]}  Ka3 {[%clk 0:00:02]} 0-1


[Site "https://www.chess.com"]

[Event "Titled Tuesday Blitz April 11 Early 2023"]
[White "Rangel, Daniel"]
[Black "Vysochin, Spartak"]
[WhiteFideId "2124475"]
[BlackFideId "14103516"]
[WhiteElo "2256"]
[BlackElo "2367"]
[Result "0-1"]
[Round "06"]
[TimeControl "180+2"]
[Date "2023.04.11"]
[WhiteClock "0:00:15"]
[BlackClock "0:01:16"]

1. c4 {[%clk 0:02:46]}  e5 {[%clk 0:02:59]} 2. g3 {[%clk 0:02:42]}  c6 {[%clk 0:02:57]} 3. Bg2 {[%clk 0:02:43]}  d5 {[%clk 0:02:57]} 4. cxd5 {[%clk 0:02:42]}  cxd5 {[%clk 0:02:58]} 5. Nf3 {[%clk 0:02:42]}  e4 {[%clk 0:02:53]} 6. Nd4 {[%clk 0:02:42]}  Qb6 {[%clk 0:02:53]} 7. Nc2 {[%clk 0:02:41]}  Nf6 {[%clk 0:02:47]} 8. O-O {[%clk 0:02:41]}  Nc6 {[%clk 0:02:44]} 9. Nc3 {[%clk 0:02:41]}  Bg4 {[%clk 0:02:15]} 10. d3 {[%clk 0:02:36]}  O-O-O {[%clk 0:02:10]} 11. dxe4 {[%clk 0:01:52]}  dxe4 {[%clk 0:02:03]} 12. Qe1 {[%clk 0:01:51]}  h5 {[%clk 0:01:52]} 13. Ne3 {[%clk 0:01:31]}  h4 {[%clk 0:01:33]} 14. Nxg4 {[%clk 0:01:23]}  Nxg4 {[%clk 0:01:33]} 15. Bh3 {[%clk 0:01:22]}  f5 {[%clk 0:01:33]} 16. Bxg4 {[%clk 0:01:09]}  fxg4 {[%clk 0:01:33]} 17. Nxe4 {[%clk 0:01:09]}  hxg3 {[%clk 0:01:32]} 18. hxg3 {[%clk 0:00:55]}  Bb4 {[%clk 0:01:17]} 19. Bd2 {[%clk 0:00:49]}  Qd4 {[%clk 0:01:16]} 20. Bxb4 {[%clk 0:00:15]}  Qxe4 {[%clk 0:01:16]} 0-1


[Site "https://www.chess.com"]

[Event "Titled Tuesday Blitz April 11 Early 2023"]
[White "Reprintsev, Alexander"]
[Black "Belozerov, Andrei"]
[WhiteFideId "14100541"]
[BlackFideId "4120213"]
[WhiteElo "2211"]
[BlackElo "2373"]
[Result "0-1"]
[Round "06"]
[TimeControl "180+2"]
[Date "2023.04.11"]
[WhiteClock "0:01:39"]
[BlackClock "0:00:57"]

1. e4 {[%clk 0:03:00]}  c5 {[%clk 0:02:57]} 2. b3 {[%clk 0:03:00]}  g6 {[%clk 0:02:56]} 3. Bb2 {[%clk 0:03:00]}  Nf6 {[%clk 0:02:56]} 4. e5 {[%clk 0:02:55]}  Nd5 {[%clk 0:02:56]} 5. Nc3 {[%clk 0:02:55]}  Nxc3 {[%clk 0:02:53]} 6. dxc3 {[%clk 0:02:55]}  Bg7 {[%clk 0:02:52]} 7. Qd5 {[%clk 0:02:54]}  O-O {[%clk 0:02:51]} 8. O-O-O {[%clk 0:02:49]}  Nc6 {[%clk 0:02:48]} 9. Nf3 {[%clk 0:02:43]}  d6 {[%clk 0:02:36]} 10. exd6 {[%clk 0:02:41]}  exd6 {[%clk 0:02:33]} 11. Qxd6 {[%clk 0:02:38]}  Qa5 {[%clk 0:02:31]} 12. Bc4 {[%clk 0:02:16]}  Bxc3 {[%clk 0:02:09]} 13. Bxc3 {[%clk 0:02:09]}  Qxc3 {[%clk 0:02:08]} 14. Kb1 {[%clk 0:02:04]}  Bf5 {[%clk 0:01:47]} 15. Qd2 {[%clk 0:02:00]}  Qf6 {[%clk 0:01:44]} 16. Qg5 {[%clk 0:01:57]}  Qc3 {[%clk 0:01:35]} 17. Qd2 {[%clk 0:01:56]}  Qg7 {[%clk 0:01:23]} 18. Bd3 {[%clk 0:01:51]}  Rfd8 {[%clk 0:01:21]} 19. Qe3 {[%clk 0:01:50]}  Bxd3 {[%clk 0:01:17]} 20. Rxd3 {[%clk 0:01:50]}  Rxd3 {[%clk 0:01:15]} 21. Qxd3 {[%clk 0:01:50]}  Rd8 {[%clk 0:01:16]} 22. Qc4 {[%clk 0:01:49]}  b6 {[%clk 0:01:05]} 23. Re1 {[%clk 0:01:48]}  Qf6 {[%clk 0:01:02]} 24. h4 {[%clk 0:01:43]}  h6 {[%clk 0:00:59]} 25. Qe4 {[%clk 0:01:40]}  Kg7 {[%clk 0:00:58]} 26. Ne5 {[%clk 0:01:38]}  Nxe5 {[%clk 0:00:56]} 27. Qxe5 {[%clk 0:01:39]}  Rd1+ {[%clk 0:00:57]} 28. Kb2 {[%clk 0:01:39]}  Rxe1 {[%clk 0:00:57]} 0-1


[Site "https://www.chess.com"]

[Event "Titled Tuesday Blitz April 11 Early 2023"]
[White "Leyva Rivera, Yunier"]
[Black "Souleidis, Georgios"]
[WhiteFideId "3505065"]
[BlackFideId "4206827"]
[WhiteElo "2430"]
[BlackElo "2401"]
[Result "1-0"]
[Round "06"]
[TimeControl "180+2"]
[Date "2023.04.11"]
[WhiteClock "0:00:09"]
[BlackClock "0:00:06"]

1. d4 {[%clk 0:03:00]}  Nf6 {[%clk 0:02:59]} 2. Nf3 {[%clk 0:03:00]}  g6 {[%clk 0:02:59]} 3. g3 {[%clk 0:03:00]}  Bg7 {[%clk 0:03:00]} 4. Bg2 {[%clk 0:03:01]}  O-O {[%clk 0:03:01]} 5. O-O {[%clk 0:03:02]}  d6 {[%clk 0:03:01]} 6. b3 {[%clk 0:03:02]}  a5 {[%clk 0:03:02]} 7. a4 {[%clk 0:03:01]}  d5 {[%clk 0:02:53]} 8. c4 {[%clk 0:02:41]}  c6 {[%clk 0:02:47]} 9. Nc3 {[%clk 0:02:39]}  Na6 {[%clk 0:02:45]} 10. Ba3 {[%clk 0:02:32]}  Re8 {[%clk 0:02:37]} 11. e3 {[%clk 0:02:30]}  Bf5 {[%clk 0:02:33]} 12. Ne5 {[%clk 0:02:24]}  Be6 {[%clk 0:02:24]} 13. cxd5 {[%clk 0:02:03]}  Nxd5 {[%clk 0:02:19]} 14. Nxd5 {[%clk 0:01:56]}  Bxd5 {[%clk 0:02:19]} 15. e4 {[%clk 0:01:53]}  Be6 {[%clk 0:02:19]} 16. Rb1 {[%clk 0:01:27]}  Qb6 {[%clk 0:02:07]} 17. d5 {[%clk 0:01:20]}  cxd5 {[%clk 0:01:43]} 18. exd5 {[%clk 0:01:20]}  Bxe5 {[%clk 0:01:30]} 19. dxe6 {[%clk 0:01:20]}  Qxe6 {[%clk 0:01:16]} 20. Re1 {[%clk 0:01:12]}  Qf6 {[%clk 0:01:07]} 21. Bxb7 {[%clk 0:01:07]}  Ra7 {[%clk 0:01:06]} 22. Qf3 {[%clk 0:01:03]}  Qxf3 {[%clk 0:00:41]} 23. Bxf3 {[%clk 0:01:04]}  Bc3 {[%clk 0:00:42]} 24. Re3 {[%clk 0:00:57]}  Bb4 {[%clk 0:00:42]} 25. Bb2 {[%clk 0:00:54]}  Nc5 {[%clk 0:00:40]} 26. Rd1 {[%clk 0:00:52]}  Rc7 {[%clk 0:00:35]} 27. h4 {[%clk 0:00:48]}  h5 {[%clk 0:00:35]} 28. Kg2 {[%clk 0:00:45]}  Ne6 {[%clk 0:00:26]} 29. Bd5 {[%clk 0:00:44]}  Rc2 {[%clk 0:00:25]} 30. Ba1 {[%clk 0:00:36]}  Ng7 {[%clk 0:00:16]} 31. Be4 {[%clk 0:00:33]}  Rcc8 {[%clk 0:00:15]} 32. Rd7 {[%clk 0:00:20]}  Rcd8 {[%clk 0:00:14]} 33. Red3 {[%clk 0:00:19]}  Rxd7 {[%clk 0:00:14]} 34. Rxd7 {[%clk 0:00:20]}  Rc8 {[%clk 0:00:11]} 35. Bd4 {[%clk 0:00:19]}  Ne6 {[%clk 0:00:10]} 36. Be5 {[%clk 0:00:16]}  Nc5 {[%clk 0:00:10]} 37. Rd4 {[%clk 0:00:16]}  Nxe4 {[%clk 0:00:10]} 38. Rxe4 {[%clk 0:00:17]}  f6 {[%clk 0:00:09]} 39. Bf4 {[%clk 0:00:15]}  Kf7 {[%clk 0:00:10]} 40. Rc4 {[%clk 0:00:14]}  Rd8 {[%clk 0:00:08]} 41. Be3 {[%clk 0:00:13]}  Rd3 {[%clk 0:00:08]} 42. Bc5 {[%clk 0:00:12]}  Rxb3 {[%clk 0:00:08]} 43. Be3 {[%clk 0:00:12]}  Ra3 {[%clk 0:00:08]} 44. Bb6 {[%clk 0:00:11]}  Ra2 {[%clk 0:00:05]} 45. Kf3 {[%clk 0:00:11]}  Ke6 {[%clk 0:00:05]} 46. Re4+ {[%clk 0:00:11]}  Kf7 {[%clk 0:00:05]} 47. Bd8 {[%clk 0:00:10]}  e5 {[%clk 0:00:06]} 48. Rc4 {[%clk 0:00:10]}  Ke6 {[%clk 0:00:06]} 49. Rc6+ {[%clk 0:00:09]}  Kf5 {[%clk 0:00:06]} 50. Rxf6# {[%clk 0:00:09]} 1-0


[Site "https://www.chess.com"]

[Event "Titled Tuesday Blitz April 11 Early 2023"]
[White "Darini, Pouria"]
[Black "Bochnicka, Vladimir"]
[WhiteFideId "12502200"]
[BlackFideId "14943450"]
[WhiteElo "2482"]
[BlackElo "2094"]
[Result "1-0"]
[Round "06"]
[TimeControl "180+2"]
[Date "2023.04.11"]
[WhiteClock "0:00:42"]
[BlackClock "0:00:05"]

1. d4 {[%clk 0:02:59]}  Nf6 {[%clk 0:02:59]} 2. Bg5 {[%clk 0:03:00]}  e6 {[%clk 0:02:59]} 3. Nd2 {[%clk 0:02:59]}  h6 {[%clk 0:02:58]} 4. Bh4 {[%clk 0:02:58]}  c5 {[%clk 0:02:39]} 5. e3 {[%clk 0:02:59]}  d5 {[%clk 0:02:38]} 6. c3 {[%clk 0:02:57]}  Be7 {[%clk 0:02:32]} 7. Ngf3 {[%clk 0:02:57]}  O-O {[%clk 0:02:30]} 8. Bd3 {[%clk 0:02:58]}  Nc6 {[%clk 0:02:26]} 9. Qe2 {[%clk 0:02:56]}  Qc7 {[%clk 0:02:22]} 10. Bg3 {[%clk 0:02:49]}  Bd6 {[%clk 0:02:22]} 11. dxc5 {[%clk 0:02:48]}  Bxg3 {[%clk 0:02:21]} 12. hxg3 {[%clk 0:02:49]}  e5 {[%clk 0:02:20]} 13. e4 {[%clk 0:02:49]}  Be6 {[%clk 0:01:57]} 14. O-O {[%clk 0:02:39]}  Rad8 {[%clk 0:01:56]} 15. Rfe1 {[%clk 0:02:22]}  d4 {[%clk 0:01:50]} 16. cxd4 {[%clk 0:02:18]}  Nxd4 {[%clk 0:01:49]} 17. Nxd4 {[%clk 0:02:18]}  Rxd4 {[%clk 0:01:49]} 18. Nf3 {[%clk 0:02:19]}  Rd7 {[%clk 0:01:32]} 19. Bb5 {[%clk 0:02:16]}  Rdd8 {[%clk 0:01:32]} 20. b4 {[%clk 0:02:16]}  a6 {[%clk 0:01:31]} 21. Bc4 {[%clk 0:02:16]}  Bd7 {[%clk 0:01:23]} 22. a3 {[%clk 0:02:11]}  Ba4 {[%clk 0:01:20]} 23. Qb2 {[%clk 0:02:07]}  Rfe8 {[%clk 0:01:15]} 24. Qc3 {[%clk 0:01:57]}  Bc6 {[%clk 0:01:14]} 25. Qc2 {[%clk 0:01:53]}  Rd7 {[%clk 0:01:10]} 26. a4 {[%clk 0:01:46]}  Rdd8 {[%clk 0:01:05]} 27. b5 {[%clk 0:01:46]}  axb5 {[%clk 0:01:06]} 28. axb5 {[%clk 0:01:46]}  Bd7 {[%clk 0:01:07]} 29. Rac1 {[%clk 0:01:31]}  Bg4 {[%clk 0:01:03]} 30. Bf1 {[%clk 0:01:12]}  Nd7 {[%clk 0:00:44]} 31. c6 {[%clk 0:01:11]}  bxc6 {[%clk 0:00:44]} 32. Qxc6 {[%clk 0:01:12]}  Qxc6 {[%clk 0:00:40]} 33. bxc6 {[%clk 0:01:13]}  Nf8 {[%clk 0:00:35]} 34. c7 {[%clk 0:01:13]}  Rc8 {[%clk 0:00:36]} 35. Ba6 {[%clk 0:01:13]}  Bxf3 {[%clk 0:00:30]} 36. gxf3 {[%clk 0:01:13]}  Ne6 {[%clk 0:00:30]} 37. Bxc8 {[%clk 0:01:13]}  Rxc8 {[%clk 0:00:31]} 38. Red1 {[%clk 0:01:08]}  Rxc7 {[%clk 0:00:30]} 39. Rxc7 {[%clk 0:01:09]}  Nxc7 {[%clk 0:00:31]} 40. Rd8+ {[%clk 0:01:10]}  Kh7 {[%clk 0:00:31]} 41. Rd7 {[%clk 0:01:10]}  Ne6 {[%clk 0:00:30]} 42. Rxf7 {[%clk 0:01:11]}  Kg6 {[%clk 0:00:30]} 43. Ra7 {[%clk 0:01:09]}  Kf6 {[%clk 0:00:28]} 44. Kg2 {[%clk 0:01:10]}  g6 {[%clk 0:00:28]} 45. Ra6 {[%clk 0:01:10]}  Kf7 {[%clk 0:00:28]} 46. Kf1 {[%clk 0:01:07]}  g5 {[%clk 0:00:27]} 47. Ke2 {[%clk 0:01:01]}  h5 {[%clk 0:00:26]} 48. Ke3 {[%clk 0:01:01]}  h4 {[%clk 0:00:22]} 49. Ra7+ {[%clk 0:00:39]}  Kg6 {[%clk 0:00:21]} 50. Re7 {[%clk 0:00:38]}  Kf6 {[%clk 0:00:07]} 51. Rxe6+ {[%clk 0:00:39]}  Kxe6 {[%clk 0:00:07]} 52. gxh4 {[%clk 0:00:40]}  gxh4 {[%clk 0:00:08]} 53. f4 {[%clk 0:00:40]}  h3 {[%clk 0:00:06]} 54. f5+ {[%clk 0:00:41]}  Kf6 {[%clk 0:00:06]} 55. Kf3 {[%clk 0:00:42]}  Kg5 {[%clk 0:00:05]} 56. Kg3 {[%clk 0:00:42]} 1-0


[Site "https://www.chess.com"]